Workbook

Sheet Sheet1
A1: 聚划算成本核算
A4: 项目 | B4: 销售预估 | C4: 成本（元） | D4: 佣金 | E4: 运费成本（元） | F4: 坑费
F5: 15000
F6: 定价1 | I6: 定价2 | L6: 定价3
F7: 定价 | G7: 实际成本 | H7: 总利润 | I7: 定价 | J7: 实际成本 | K7: 利润 | L7: 定价 | M7: 实际成本 | N7: 利润
A8: 预测 | B8: 1000 | C8: 10 | D8: 0.08 | E8: 8 | F8: 29 | G8: =F5/B8+C8+E8+(F8*D8) -> 35.32 | H8: =(F8-G8)*B8 -> -6320 | I8: 39 | J8: =F5/B8+C8+E8+(I8*D8) -> 36.12 | K8: =(I8-J8)*B8 -> 2880 | L8: 49 | M8: =F5/B8+C8+E8+(L8*D8) -> 36.92 | N8: =(L8-M8)*B8 -> 12080
B9: 2000 | D9: 0.08 | G9: =F5/B9+C8+E8+(F8*D9) -> 27.82 | H9: =(F8-G9)*B9 -> 2360 | J9: =F5/B9+C8+E8+(I8*D8) -> 28.62 | K9: =(I8-J9)*B9 -> 20760 | M9: =F5/B9+C8+E8+(L8*D8) -> 29.42 | N9: =(L8-M9)*B9 -> 39160
B10: 3000 | D10: 0.08 | G10: =F5/B10+C8+E8+(F8*D10) -> 25.32 | H10: =(F8-G10)*B10 -> 11040 | J10: =F5/B10+C8+E8+(I8*D8) -> 26.12 | K10: =(I8-J10)*B10 -> 38640 | M10: =F5/B10+C8+E8+(L8*D8) -> 26.92 | N10: =(L8-M10)*B10 -> 66240
B11: 5000 | D11: 0.08 | G11: =F5/B11+C8+E8+(F8*D11) -> 23.32 | H11: =(F8-G11)*B11 -> 28400 | J11: =F5/B11+C8+E8+(I8*D8) -> 24.12 | K11: =(I8-J11)*B11 -> 74400 | M11: =F5/B11+C8+E8+(L8*D8) -> 24.92 | N11: =(L8-M11)*B11 -> 120400
B12: 8000 | D12: 0.08 | G12: =F5/B12+C8+E8+(F8*D12) -> 22.195 | H12: =(F8-G12)*B12 -> 54440 | J12: =F5/B12+C8+E8+(I8*D8) -> 22.995 | K12: =(I8-J12)*B12 -> 128040 | M12: =F5/B12+C8+E8+(L8*D8) -> 23.795 | N12: =(L8-M12)*B12 -> 201640
B13: 10000 | D13: 0.08 | G13: =F5/B13+C8+E8+(F8*D13) -> 21.82 | H13: =(F8-G13)*B13 -> 71800 | J13: =F5/B13+C8+E8+(I8*D8) -> 22.62 | K13: =(I8-J13)*B13 -> 163800 | M13: =F5/B13+C8+E8+(L8*D8) -> 23.42 | N13: =(L8-M13)*B13 -> 255800

Sheet Sheet2

Sheet Sheet3
